Workbook

Sheet 附件
A1: 附件
A2: 2019年中央财政补助中西部农村订单定向本科医学生 免费培养分省（区、市）人才需求计划
A4: 省（市、区） | B4: 县（区） | C4: 2019年免费医学生培养项目人才培养计划（人）
C5: 临床医学 | D5: 中医学 | E5: 蒙医学 | F5: 藏医学 | G5: 傣医学 | H5: 合计
A6: 河北省 | B6: 南皮县 | C6: 2 | D6: 0 | E6: 0 | F6: 0 | G6: 0 | H6: =C6+D6+E6+F6+G6 -> 2
B7: 武邑县 | C7: 3 | D7: 0 | E7: 0 | F7: 0 | G7: 0 | H7: =C7+D7+E7+F7+G7 -> 3
B8: 饶阳县 | C8: 3 | D8: 0 | E8: 0 | F8: 0 | G8: 0 | H8: 3
B9: 承德县 | C9: 5 | D9: 0 | E9: 0 | F9: 0 | G9: 0 | H9: 5
B10: 隆化县 | C10: 9 | D10: 0 | E10: 0 | F10: 0 | G10: 0 | H10: 9
B11: 丰宁满族自治县 | C11: 9 | D11: 0 | E11: 0 | F11: 0 | G11: 0 | H11: 9
B12: 宣化县 | C12: 9 | D12: 0 | E12: 0 | F12: 0 | G12: 0 | H12: 9
B13: 沽源县 | C13: 3 | D13: 0 | E13: 0 | F13: 0 | G13: 0 | H13: 3
B14: 尚义县 | C14: 9 | D14: 0 | E14: 0 | F14: 0 | G14: 0 | H14: 9
B15: 蔚县 | C15: 9 | D15: 0 | E15: 0 | F15: 0 | G15: 0 | H15: 9
B16: 万全县 | C16: 5 | D16: 0 | E16: 0 | F16: 0 | G16: 0 | H16: 5
B17: 崇礼县 | C17: 2 | D17: 0 | E17: 0 | F17: 0 | G17: 0 | H17: 2
B18: 阜平县 | C18: 2 | D18: 0 | E18: 0 | F18: 0 | G18: 0 | H18: 2
B19: 唐县 | C19: 3 | D19: 0 | E19: 0 | F19: 0 | G19: 0 | H19: 3
B20: 涞源县 | C20: 3 | D20: 0 | E20: 0 | F20: 0 | G20: 0 | H20: 3
B21: 易县 | C21: 9 | D21: 0 | E21: 0 | F21: 0 | G21: 0 | H21: 9
B22: 曲阳县 | C22: 3 | D22: 0 | E22: 0 | F22: 0 | G22: 0 | H22: 3
B23: 新河县 | C23: 1 | D23: 0 | E23: 0 | F23: 0 | G23: 0 | H23: 1
B24: 广宗县 | C24: 3 | D24: 0 | E24: 0 | F24: 0 | G24: 0 | H24: 3
B25: 平乡县 | C25: 9 | D25: 0 | E25: 0 | F25: 0 | G25: 0 | H25: 9
B26: 威县 | C26: 4 | D26: 0 | E26: 0 | F26: 0 | G26: 0 | H26: 4
B27: 大名县 | C27: 5 | D27: 0 | E27: 0 | F27: 0 | G27: 0 | H27: 5
B28: 青龙县 | C28: 9 | D28: 0 | E28: 0 | F28: 0 | G28: 0 | H28: 9
B29: 行唐县 | C29: 2 | D29: 0 | E29: 0 | F29: 0 | G29: 0 | H29: 2
B30: 灵寿县 | C30: 2 | D30: 0 | E30: 0 | F30: 0 | G30: 0 | H30: 2
B31: 容城县 | C31: 5 | D31: 0 | E31: 0 | F31: 0 | G31: 0 | H31: 5
B32: 安新县 | C32: 2 | D32: 0 | E32: 0 | F32: 0 | G32: 0 | H32: 2
B33: 衡水市安平县 | C33: 11 | D33: 0 | E33: 0 | F33: 0 | G33: 0 | H33: 11
B34: 衡水市景县 | C34: 6 | D34: 0 | E34: 0 | F34: 0 | G34: 0 | H34: 6
B35: 桃城区桃城区 | C35: 3 | D35: 0 | E35: 0 | F35: 0 | G35: 0 | H35: 3
B36: 衡水市枣强县 | C36: 3 | D36: 0 | E36: 0 | F36: 0 | G36: 0 | H36: 3
B37: 保定高碑店市 | C37: 1 | D37: 0 | E37: 0 | F37: 0 | G37: 0 | H37: 1
B38: 保定市蠡县 | C38: 1 | D38: 0 | E38: 0 | F38: 0 | G38: 0 | H38: 1
B39: 唐山市高新技术开发区 | C39: 1 | D39: 0 | E39: 0 | F39: 0 | G39: 0 | H39: 1
B40: 唐山市曹妃甸区 | C40: 1 | D40: 0 | E40: 0 | F40: 0 | G40: 0 | H40: 1
B41: 唐山市海港区 | C41: 1 | D41: 0 | E41: 0 | F41: 0 | G41: 0 | H41: 1
B42: 唐山市丰南区 | C42: 1 | D42: 0 | E42: 0 | F42: 0 | G42: 0 | H42: 1
B43: 唐山市路南区 | C43: 1 | D43: 0 | E43: 0 | F43: 0 | G43: 0 | H43: 1
B44: 合计 | C44: =SUM(C6:C43) -> 160 | D44: =SUM(D6:D43) -> 0 | E44: 0 | F44: 0 | G44: 0 | H44: 160
A45: 山西省 | B45: 清徐县 | C45: 4 | D45: 1 | E45: 0 | F45: 0 | G45: 0 | H45: 5
B46: 阳曲县 | C46: 4 | D46: 2 | E46: 0 | F46: 0 | G46: 0 | H46: 6
B47: 娄烦县 | C47: 4 | D47: 0 | E47: 0 | F47: 0 | G47: 0 | H47: 4
B48: 古交市 | C48: 3 | D48: 3 | E48: 0 | F48: 0 | G48: 0 | H48: 6
B49: 小店区 | C49: 0 | D49: 0 | E49: 0 | F49: 0 | G49: 0 | H49: 0
B50: 晋源区 | C50: 0 | D50: 0 | E50: 0 | F50: 0 | G50: 0 | H50: 0
B51: 尖草坪区 | C51: 4 | D51: 0 | E51: 0 | F51: 0 | G51: 0 | H51: 4
B52: 杏花岭区 | C52: 0 | D52: 0 | E52: 0 | F52: 0 | G52: 0 | H52: 0
B53: 迎泽区 | C53: 0 | D53: 0 | E53: 0 | F53: 0 | G53: 0 | H53: 0
B54: 万柏林区 | C54: 0 | D54: 0 | E54: 0 | F54: 0 | G54: 0 | H54: 0
B55: 云州区（大同县） | C55: 2 | D55: 0 | E55: 0 | F55: 0 | G55: 0 | H55: 2
B56: 阳高县 | C56: 5 | D56: 0 | E56: 0 | F56: 0 | G56: 0 | H56: 5
B57: 天镇县 | C57: 4 | D57: 2 | E57: 0 | F57: 0 | G57: 0 | H57: 6
B58: 浑源县 | C58: 5 | D58: 0 | E58: 0 | F58: 0 | G58: 0 | H58: 5
B59: 灵丘县 | C59: 4 | D59: 2 | E59: 0 | F59: 0 | G59: 0 | H59: 6
B60: 广灵县 | C60: 7 | D60: 3 | E60: 0 | F60: 0 | G60: 0 | H60: 10
B61: 左云县 | C61: 5 | D61: 0 | E61: 0 | F61: 0 | G61: 0 | H61: 5
B62: 云冈区（南郊区、矿区） | C62: 0 | D62: 0 | E62: 0 | F62: 0 | G62: 0 | H62: 0
B63: 新荣区 | C63: 0 | D63: 0 | E63: 0 | F63: 0 | G63: 0 | H63: 0
B64: 平城区（城区） | C64: 0 | D64: 0 | E64: 0 | F64: 0 | G64: 0 | H64: 0
B65: 盂县 | C65: 0 | D65: 0 | E65: 0 | F65: 0 | G65: 0 | H65: 0
B66: 平定县 | C66: 3 | D66: 0 | E66: 0 | F66: 0 | G66: 0 | H66: 3
B67: 郊区 | C67: 2 | D67: 0 | E67: 0 | F67: 0 | G67: 0 | H67: 2
B68: 城区 | C68: 0 | D68: 0 | E68: 0 | F68: 0 | G68: 0 | H68: 0
B69: 矿区 | C69: 0 | D69: 0 | E69: 0 | F69: 0 | G69: 0 | H69: 0
B70: 平顺县 | C70: 3 | D70: 0 | E70: 0 | F70: 0 | G70: 0 | H70: 3
B71: 沁源县 | C71: 4 | D71: 1 | E71: 0 | F71: 0 | G71: 0 | H71: 5
B72: 黎城县 | C72: 2 | D72: 0 | E72: 0 | F72: 0 | G72: 0 | H72: =C72+D72+E72+F72+G72 -> 2
B73: 潞城区（潞城市） | C73: 3 | D73: 0 | E73: 0 | F73: 0 | G73: 0 | H73: 3
B74: 襄垣县 | C74: 0 | D74: 0 | E74: 0 | F74: 0 | G74: 0 | H74: 0
B75: 壶关县 | C75: 4 | D75: 2 | E75: 0 | F75: 0 | G75: 0 | H75: 6
B76: 上党区（长治县） | C76: 3 | D76: 0 | E76: 0 | F76: 0 | G76: 0 | H76: 3
B77: 屯留区（屯留县） | C77: 0 | D77: 0 | E77: 0 | F77: 0 | G77: 0 | H77: 0
B78: 武乡县 | C78: 2 | D78: 0 | E78: 0 | F78: 0 | G78: 0 | H78: 2
B79: 潞洲区（城区、郊区） | C79: 3 | D79: 0 | E79: 0 | F79: 0 | G79: 0 | H79: 3
B80: 长子县 | C80: 4 | D80: 1 | E80: 0 | F80: 0 | G80: 0 | H80: 5
B81: 沁县 | C81: 0 | D81: 0 | E81: 0 | F81: 0 | G81: 0 | H81: 0
B82: 沁水县 | C82: 4 | D82: 1 | E82: 0 | F82: 0 | G82: 0 | H82: 5
B83: 阳城县 | C83: 4 | D83: 1 | E83: 0 | F83: 0 | G83: 0 | H83: 5
B84: 陵川县 | C84: 4 | D84: 1 | E84: 0 | F84: 0 | G84: 0 | H84: 5
B85: 泽州县 | C85: 0 | D85: 0 | E85: 0 | F85: 0 | G85: 0 | H85: 0
B86: 高平市 | C86: 4 | D86: 1 | E86: 0 | F86: 0 | G86: 0 | H86: 5
B87: 城区 | C87: 0 | D87: 0 | E87: 0 | F87: 0 | G87: 0 | H87: 0
B88: 朔城区 | C88: 0 | D88: 0 | E88: 0 | F88: 0 | G88: 0 | H88: 0
B89: 平鲁区 | C89: 5 | D89: 1 | E89: 0 | F89: 0 | G89: 0 | H89: 6
B90: 右玉县 | C90: 0 | D90: 0 | E90: 0 | F90: 0 | G90: 0 | H90: 0
B91: 怀仁县 | C91: 3 | D91: 0 | E91: 0 | F91: 0 | G91: 0 | H91: 3
B92: 山阴县 | C92: 0 | D92: 0 | E92: 0 | F92: 0 | G92: 0 | H92: 0
B93: 应县 | C93: 3 | D93: 0 | E93: 0 | F93: 0 | G93: 0 | H93: 3
B94: 榆次区 | C94: 4 | D94: 1 | E94: 0 | F94: 0 | G94: 0 | H94: 5
A95: 山西省 | B95: 太谷县 | C95: 3 | D95: 0 | E95: 0 | F95: 0 | G95: 0 | H95: 3
B96: 祁县 | C96: 4 | D96: 1 | E96: 0 | F96: 0 | G96: 0 | H96: 5
B97: 平遥县 | C97: 4 | D97: 1 | E97: 0 | F97: 0 | G97: 0 | H97: 5
B98: 介休市 | C98: 4 | D98: 1 | E98: 0 | F98: 0 | G98: 0 | H98: 5
B99: 灵石县 | C99: 0 | D99: 0 | E99: 0 | F99: 0 | G99: 0 | H99: 0
B100: 昔阳县 | C100: 6 | D100: 2 | E100: 0 | F100: 0 | G100: 0 | H100: 8
B101: 寿阳县 | C101: 0 | D101: 0 | E101: 0 | F101: 0 | G101: 0 | H101: 0
B102: 榆社县 | C102: 6 | D102: 2 | E102: 0 | F102: 0 | G102: 0 | H102: 8
B103: 和顺县 | C103: 0 | D103: 0 | E103: 0 | F103: 0 | G103: 0 | H103: 0
B104: 左权县 | C104: 3 | D104: 0 | E104: 0 | F104: 0 | G104: 0 | H104: 3
B105: 忻府区 | C105: 6 | D105: 2 | E105: 0 | F105: 0 | G105: 0 | H105: 8
B106: 原平市 | C106: 3 | D106: 0 | E106: 0 | F106: 0 | G106: 0 | H106: 3
B107: 代县 | C107: 2 | D107: 0 | E107: 0 | F107: 0 | G107: 0 | H107: 2
B108: 繁峙县 | C108: 0 | D108: 0 | E108: 0 | F108: 0 | G108: 0 | H108: 0
B109: 宁武县 | C109: 2 | D109: 0 | E109: 0 | F109: 0 | G109: 0 | H109: 2
B110: 静乐县 | C110: 2 | D110: 0 | E110: 0 | F110: 0 | G110: 0 | H110: 2
B111: 五寨县 | C111: 0 | D111: 0 | E111: 0 | F111: 0 | G111: 0 | H111: 0
B112: 岢岚县 | C112: 3 | D112: 0 | E112: 0 | F112: 0 | G112: 0 | H112: 3
B113: 保德县 | C113: 2 | D113: 0 | E113: 0 | F113: 0 | G113: 0 | H113: 2
B114: 偏关县 | C114: 2 | D114: 0 | E114: 0 | F114: 0 | G114: 0 | H114: 2
B115: 五台县 | C115: 4 | D115: 1 | E115: 0 | F115: 0 | G115: 0 | H115: 5
B116: 神池县 | C116: 1 | D116: 0 | E116: 0 | F116: 0 | G116: 0 | H116: 1
B117: 河曲县 | C117: 0 | D117: 0 | E117: 0 | F117: 0 | G117: 0 | H117: 0
B118: 定襄县 | C118: 0 | D118: 0 | E118: 0 | F118: 0 | G118: 0 | H118: 0
B119: 交城县 | C119: 2 | D119: 0 | E119: 0 | F119: 0 | G119: 0 | H119: 2
B120: 孝义市 | C120: 4 | D120: 2 | E120: 0 | F120: 0 | G120: 0 | H120: 6
B121: 离石区 | C121: 0 | D121: 0 | E121: 0 | F121: 0 | G121: 0 | H121: 0
B122: 方山县 | C122: 0 | D122: 0 | E122: 0 | F122: 0 | G122: 0 | H122: 0
B123: 临县 | C123: 3 | D123: 0 | E123: 0 | F123: 0 | G123: 0 | H123: 3
B124: 柳林县 | C124: 3 | D124: 0 | E124: 0 | F124: 0 | G124: 0 | H124: 3
B125: 交口县 | C125: 4 | D125: 0 | E125: 0 | F125: 0 | G125: 0 | H125: 4
B126: 文水县 | C126: 4 | D126: 2 | E126: 0 | F126: 0 | G126: 0 | H126: 6
B127: 兴县 | C127: 4 | D127: 1 | E127: 0 | F127: 0 | G127: 0 | H127: 5
B128: 石楼县 | C128: 4 | D128: 1 | E128: 0 | F128: 0 | G128: 0 | H128: 5
B129: 岚县 | C129: 6 | D129: 2 | E129: 0 | F129: 0 | G129: 0 | H129: 8
B130: 中阳县 | C130: 0 | D130: 0 | E130: 0 | F130: 0 | G130: 0 | H130: 0
B131: 汾阳市 | C131: 4 | D131: 2 | E131: 0 | F131: 0 | G131: 0 | H131: 6
B132: 乡宁县 | C132: 0 | D132: 0 | E132: 0 | F132: 0 | G132: 0 | H132: 0
B133: 襄汾县 | C133: 0 | D133: 0 | E133: 0 | F133: 0 | G133: 0 | H133: 0
B134: 翼城县 | C134: 0 | D134: 0 | E134: 0 | F134: 0 | G134: 0 | H134: 0
B135: 蒲县 | C135: 0 | D135: 0 | E135: 0 | F135: 0 | G135: 0 | H135: 0
B136: 浮山县 | C136: 0 | D136: 0 | E136: 0 | F136: 0 | G136: 0 | H136: =C136+D136+E136+F136+G136 -> 0
B137: 尧都区 | C137: 10 | D137: 0 | E137: 0 | F137: 0 | G137: 0 | H137: 10
B138: 古县 | C138: 0 | D138: 0 | E138: 0 | F138: 0 | G138: 0 | H138: 0
B139: 吉县 | C139: 1 | D139: 0 | E139: 0 | F139: 0 | G139: 0 | H139: 1
B140: 安泽县 | C140: 0 | D140: 0 | E140: 0 | F140: 0 | G140: 0 | H140: 0
B141: 汾西县 | C141: 0 | D141: 0 | E141: 0 | F141: 0 | G141: 0 | H141: 0
B142: 霍州市 | C142: 3 | D142: 0 | E142: 0 | F142: 0 | G142: 0 | H142: 3
B143: 洪洞县 | C143: 0 | D143: 0 | E143: 0 | F143: 0 | G143: 0 | H143: 0
B144: 大宁县 | C144: 0 | D144: 0 | E144: 0 | F144: 0 | G144: 0 | H144: 0
A145: 山西省 | B145: 永和县 | C145: 0 | D145: 0 | E145: 0 | F145: 0 | G145: 0 | H145: 0
B146: 曲沃县 | C146: 3 | D146: 0 | E146: 0 | F146: 0 | G146: 0 | H146: 3
B147: 隰县 | C147: 0 | D147: 0 | E147: 0 | F147: 0 | G147: 0 | H147: 0
B148: 侯马市 | C148: 0 | D148: 0 | E148: 0 | F148: 0 | G148: 0 | H148: 0
B149: 盐湖区 | C149: 3 | D149: 0 | E149: 0 | F149: 0 | G149: 0 | H149: 3
B150: 河津市 | C150: 3 | D150: 1 | E150: 0 | F150: 0 | G150: 0 | H150: 4
B151: 永济市 | C151: 2 | D151: 0 | E151: 0 | F151: 0 | G151: 0 | H151: 2
B152: 临猗县 | C152: 3 | D152: 0 | E152: 0 | F152: 0 | G152: 0 | H152: 3
B153: 万荣县 | C153: 4 | D153: 2 | E153: 0 | F153: 0 | G153: 0 | H153: 6
B154: 稷山县 | C154: 4 | D154: 1 | E154: 0 | F154: 0 | G154: 0 | H154: 5
B155: 新绛县 | C155: 2 | D155: 0 | E155: 0 | F155: 0 | G155: 0 | H155: 2
B156: 绛县 | C156: 4 | D156: 1 | E156: 0 | F156: 0 | G156: 0 | H156: 5
B157: 闻喜县 | C157: 4 | D157: 1 | E157: 0 | F157: 0 | G157: 0 | H157: 5
B158: 夏县 | C158: 4 | D158: 1 | E158: 0 | F158: 0 | G158: 0 | H158: 5
B159: 平陆县 | C159: 3 | D159: 0 | E159: 0 | F159: 0 | G159: 0 | H159: 3
B160: 垣曲县 | C160: 3 | D160: 0 | E160: 0 | F160: 0 | G160: 0 | H160: 3
B161: 芮城县 | C161: 4 | D161: 0 | E161: 0 | F161: 0 | G161: 0 | H161: 4
B162: 合计 | C162: =SUM(C45:C161) -> 270 | D162: =SUM(D45:D161) -> 50 | E162: 0 | F162: 0 | G162: 0 | H162: 320
A163: 内蒙古自治区 | B163: 武川县 | C163: 0 | D163: 0 | E163: 0 | F163: 0 | G163: 0 | H163: 0
B164: 土默特左旗 | C164: 1 | D164: 0 | E164: 0 | F164: 0 | G164: 0 | H164: 1
B165: 托克托县 | C165: 1 | D165: 2 | E165: 0 | F165: 0 | G165: 0 | H165: 3
B166: 和林格尔县 | C166: 1 | D166: 1 | E166: 0 | F166: 0 | G166: 0 | H166: 2
B167: 清水河县 | C167: 2 | D167: 1 | E167: 0 | F167: 0 | G167: 0 | H167: 3
B168: 九原区 | C168: 2 | D168: 1 | E168: 0 | F168: 0 | G168: 0 | H168: 3
B169: 鄂温克旗 | C169: 1 | D169: 1 | E169: 0 | F169: 0 | G169: 0 | H169: 2
B170: 莫力达瓦达斡尔族自治旗 | C170: 0 | D170: 0 | E170: 0 | F170: 0 | G170: 0 | H170: 0
B171: 鄂伦春自治旗 | C171: 4 | D171: 4 | E171: 0 | F171: 0 | G171: 0 | H171: 8
B172: 乌兰浩特市 | C172: 1 | D172: 0 | E172: 0 | F172: 0 | G172: 0 | H172: 1
B173: 阿尔山市 | C173: 0 | D173: 1 | E173: 5 | F173: 0 | G173: 0 | H173: 6
B174: 科尔沁右翼前旗 | C174: 7 | D174: 1 | E174: 3 | F174: 0 | G174: 0 | H174: 11
B175: 科尔沁右翼中旗 | C175: 3 | D175: 1 | E175: 0 | F175: 0 | G175: 0 | H175: 4
B176: 扎赉特旗 | C176: 2 | D176: 1 | E176: 3 | F176: 0 | G176: 0 | H176: 6
B177: 突泉县 | C177: 3 | D177: 2 | E177: 0 | F177: 0 | G177: 0 | H177: 5
B178: 库伦县 | C178: 2 | D178: 0 | E178: 0 | F178: 0 | G178: 0 | H178: 2
B179: 科尔沁左翼中旗 | C179: 0 | D179: 0 | E179: 0 | F179: 0 | G179: 0 | H179: 0
B180: 科尔沁左翼后旗 | C180: 0 | D180: 0 | E180: 0 | F180: 0 | G180: 0 | H180: 0
B181: 库伦旗 | C181: 0 | D181: 0 | E181: 0 | F181: 0 | G181: 0 | H181: 0
B182: 奈曼旗 | C182: 0 | D182: 0 | E182: 0 | F182: 0 | G182: 0 | H182: 0
B183: 克什克腾旗 | C183: 1 | D183: 1 | E183: 5 | F183: 0 | G183: 0 | H183: 7
B184: 阿鲁科尔沁旗 | C184: 3 | D184: 2 | E184: 3 | F184: 0 | G184: 0 | H184: 8
B185: 巴林左旗 | C185: 3 | D185: 0 | E185: 0 | F185: 0 | G185: 0 | H185: 3
B186: 巴林右旗 | C186: 0 | D186: 2 | E186: 1 | F186: 0 | G186: 0 | H186: 3
B187: 林西县 | C187: 0 | D187: 0 | E187: 0 | F187: 0 | G187: 0 | H187: 0
B188: 翁牛特旗 | C188: 1 | D188: 1 | E188: 4 | F188: 0 | G188: 0 | H188: 6
B189: 喀喇沁旗 | C189: 1 | D189: 1 | E189: 0 | F189: 0 | G189: 0 | H189: 2
B190: 宁城县 | C190: 2 | D190: 1 | E190: 0 | F190: 0 | G190: 0 | H190: 3
B191: 敖汉旗 | C191: 0 | D191: 1 | E191: 0 | F191: 0 | G191: 0 | H191: 1
B192: 东乌旗 | C192: 0 | D192: 0 | E192: 0 | F192: 0 | G192: 0 | H192: 0
B193: 镶黄旗 | C193: 1 | D193: 0 | E193: 1 | F193: 0 | G193: 0 | H193: 2
A194: 内蒙古自治区 | B194: 东苏旗 | C194: 1 | D194: 0 | E194: 0 | F194: 0 | G194: 0 | H194: 1
B195: 二连浩特市 | C195: 2 | D195: 0 | E195: 0 | F195: 0 | G195: 0 | H195: 2
B196: 阿巴嘎旗 | C196: 1 | D196: 0 | E196: 0 | F196: 0 | G196: 0 | H196: 1
B197: 苏尼特右旗 | C197: 0 | D197: 0 | E197: 0 | F197: 0 | G197: 0 | H197: 0
B198: 太仆寺旗 | C198: 5 | D198: 0 | E198: 0 | F198: 0 | G198: 0 | H198: 5
B199: 正镶白旗 | C199: 0 | D199: 0 | E199: 0 | F199: 0 | G199: 0 | H199: 0
B200: 集宁区 | C200: 1 | D200: 0 | E200: 1 | F200: 0 | G200: 0 | H200: 2
B201: 丰镇市 | C201: 1 | D201: 1 | E201: 0 | F201: 0 | G201: 0 | H201: =C201+D201+E201+F201+G201 -> 2
... 1116 more rows
